fUSD/lending_fUSD_20260630
["ID","MTS","AMOUNT","RATE_DAILY","PERIOD"]
[426736175,1782768643000,-480.72873426,0.00024717,2]
[426736182,1782768643000,-321.95246552,0.0002483,2]
[426736113,1782768643000,-390.280005,0.00024658,2]
[426736159,1782768643000,-151.0,0.00024658,2]
[426736152,1782768643000,-151.0,0.00024658,2]
[426736176,1782768643000,-394.890353,0.0002475,2]
[426736151,1782768643000,-214.165024,0.00024658,2]
[426736118,1782768643000,-390.280005,0.00024658,2]
[426736117,1782768643000,-390.280005,0.00024658,2]
[426736121,1782768643000,-390.280005,0.00024658,2]
[426736119,1782768643000,-390.280005,0.00024658,2]
[426736120,1782768643000,-390.280005,0.00024658,2]
[426736123,1782768643000,-390.280005,0.00024658,2]
[426736126,1782768643000,-390.280005,0.00024658,2]
[426736155,1782768643000,-151.0,0.00024658,2]
[426736122,1782768643000,-390.280005,0.00024658,2]
[426736127,1782768643000,-390.280005,0.00024658,2]
[426736128,1782768643000,-390.280005,0.00024658,2]
[426736143,1782768643000,-151.0,0.00024658,2]
[426736148,1782768643000,-151.0,0.00024658,2]
[426736124,1782768643000,-390.280005,0.00024658,2]
[426736130,1782768643000,-390.280005,0.00024658,2]
[426736129,1782768643000,-390.280005,0.00024658,2]
[426736160,1782768643000,-151.0,0.00024658,2]
[426736150,1782768643000,-151.0,0.00024658,2]
[426736140,1782768643000,-151.0,0.00024658,2]
[426736135,1782768643000,-390.28001,0.00024658,2]
[426736131,1782768643000,-390.280005,0.00024658,2]
[426736149,1782768643000,-151.0,0.00024658,2]
[426736138,1782768643000,-151.0,0.00024658,2]
[426736147,1782768643000,-151.0,0.00024658,2]
[426736145,1782768643000,-151.0,0.00024658,2]
[426736133,1782768643000,-390.280005,0.00024658,2]
[426736136,1782768643000,-181.88,0.00024658,2]
[426736142,1782768643000,-151.0,0.00024658,2]
[426736226,1782768644000,-151.0,0.00024851,7]
[426736225,1782768644000,-151.0,0.00024851,7]
[426736227,1782768644000,-300.0,0.00024853,10]
[426736222,1782768644000,-1554.54082,0.0002485,2]
[426736218,1782768644000,-352.25788833,0.00024837,2]
[426736217,1782768644000,-383.45760724,0.00024837,2]
[426736220,1782768644000,-300.74729827,0.00024837,2]
[426736219,1782768644000,-316.69871845,0.00024837,2]
[426736216,1782768644000,-303.91333661,0.00024837,2]
[426736213,1782768644000,-236.213001,0.00024837,2]
[426736221,1782768644000,-1941.7897203,0.00024839,2]
[426736223,1782768644000,-151.0,0.00024851,7]
[426736237,1782768644000,-1554.54082,0.0002495,2]
[426736228,1782768644000,-300.0,0.00024853,10]
[426736230,1782768644000,-151.0,0.00024854,2]
[426736232,1782768644000,-151.0,0.00024854,2]
[426736229,1782768644000,-403941.5121143,0.00024854,2]
[426736231,1782768644000,-151.0,0.00024854,2]
[426736233,1782768644000,-155.04188056,0.00024856,7]
[426736234,1782768644000,-300.0,0.00024858,10]
[426736240,1782768644000,-300.0,0.00024999,10]
[426736235,1782768644000,-162.53,0.000249,7]
[426736238,1782768644000,-2143.88,0.00024961,7]
[426736239,1782768644000,-154.46935751,0.00024967,2]
[426736236,1782768644000,-233.533976,0.00024946,7]
[426736214,1782768644000,-206.24020719,0.00024837,2]
[426736224,1782768644000,-151.0,0.00024851,7]
[426736215,1782768644000,-371.37187103,0.00024837,2]
[426736205,1782768644000,-318.65168413,0.00024837,2]
[426736211,1782768644000,-215.04522789,0.00024837,2]
[426736241,1782768644000,-293659.76332813,0.00025,2]
[426736185,1782768644000,-242.64580948,0.00024837,2]
[426736184,1782768644000,-228.68218607,0.00024837,2]
[426736187,1782768644000,-246.24831015,0.00024837,2]
[426736188,1782768644000,-355.82859246,0.00024837,2]
[426736191,1782768644000,-372.98673932,0.00024837,2]
[426736189,1782768644000,-239.58756754,0.00024837,2]
[426736190,1782768644000,-333.44463881,0.00024837,2]
[426736193,1782768644000,-167.54671676,0.00024837,2]
[426736186,1782768644000,-168.18124046,0.00024837,2]
[426736192,1782768644000,-300.89920578,0.00024837,2]
[426736194,1782768644000,-186.68336214,0.00024837,2]
[426736212,1782768644000,-239.80874523,0.00024837,2]
[426736199,1782768644000,-428.95571786,0.00024837,2]
[426736195,1782768644000,-210.16474962,0.00024837,2]
[426736196,1782768644000,-213.75253608,0.00024837,2]
[426736201,1782768644000,-159.72018684,0.00024837,2]
[426736198,1782768644000,-388.8887959,0.00024837,2]
[426736203,1782768644000,-221.46026609,0.00024837,2]
[426736200,1782768644000,-300.8680309,0.00024837,2]
[426736204,1782768644000,-215.1063841,0.00024837,2]
[426736207,1782768644000,-215.73012263,0.00024837,2]
[426736206,1782768644000,-347.83818699,0.00024837,2]
[426736208,1782768644000,-167.24996159,0.00024837,2]
[426736210,1782768644000,-352.25721,0.00024837,2]
[426736209,1782768644000,-381.67078509,0.00024837,2]
[426736197,1782768644000,-304.93120324,0.00024837,2]
[426736245,1782768644000,-283.0,0.00025,2]
[426736183,1782768644000,-151.84448786,0.00024837,2]
[426736244,1782768644000,-200.0,0.00025,2]
[426736270,1782768644000,-485.29161897,0.00025673,2]
[426736277,1782768644000,-451.34880868,0.00025673,2]
[426736278,1782768644000,-335.09343351,0.00025673,2]
[426736271,1782768644000,-336.36248091,0.00025673,2]
[426736281,1782768644000,-427.50507215,0.00025673,2]
[426736291,1782768644000,-431.46024527,0.00025673,2]
[426736292,1782768644000,-334.49992318,0.00025673,2]
[426736280,1782768644000,-420.32949924,0.00025673,2]
[426736282,1782768644000,-457.39680487,0.00025673,2]
[426736290,1782768644000,-521.75728049,0.00025673,2]
[426736285,1782768644000,-451.30204635,0.00025673,2]
[426736286,1782768644000,-319.44037368,0.00025673,2]
[426736288,1782768644000,-430.21276821,0.00025673,2]
[426736283,1782768644000,-583.33319384,0.00025673,2]
[426736287,1782768644000,-442.92053218,0.00025673,2]
[426736284,1782768644000,-643.43357679,0.00025673,2]
[426736289,1782768644000,-477.9775262,0.00025673,2]
[426736293,1782768644000,-572.50617763,0.00025673,2]
[426736297,1782768644000,-472.426002,0.00025673,2]
[426736299,1782768644000,-557.05780655,0.00025673,2]
[426736296,1782768644000,-479.61749046,0.00025673,2]
[426736298,1782768644000,-412.48041437,0.00025673,2]
[426736300,1782768644000,-575.18641086,0.00025673,2]
[426736294,1782768644000,-528.385815,0.00025673,2]
[426736295,1782768644000,-430.09045578,0.00025673,2]
[426736301,1782768644000,-455.87000492,0.00025673,2]
[426736243,1782768644000,-151.0,0.00025,2]
[426736279,1782768644000,-373.36672428,0.00025673,2]
[426736269,1782768644000,-457.36437215,0.00025673,2]
[426736302,1782768644000,-528.38683249,0.00025673,2]
[426736272,1782768644000,-492.49662031,0.00025673,2]
[426736274,1782768644000,-479.17513507,0.00025673,2]
[426736252,1782768644000,-1554.54082,0.0002505,2]
[426736242,1782768644000,-44704.42053714,0.00025,60]
[426736246,1782768644000,-332.0,0.00025,2]
[426736251,1782768644000,-233.0,0.00025,2]
[426736247,1782768644000,-182.0,0.00025,2]
[426736250,1782768644000,-217.59292995,0.00025,2]
[426736248,1782768644000,-514.0,0.00025,2]
[426736249,1782768644000,-627.10058497,0.00025,2]
[426736255,1782768644000,-1554.54082,0.0002525,2]
[426736266,1782768644000,-225.07163619,0.0002567,2]
[426736254,1782768644000,-1554.54082,0.0002515,2]
[426736265,1782768644000,-203.4711664,0.0002567,2]
[426736253,1782768644000,-350.0,0.00025146,2]
[426736262,1782768644000,-451.12094741,0.00025667,2]
[426736268,1782768644000,-303.68897573,0.00025673,2]
[426736276,1782768644000,-559.48010898,0.00025673,2]
[426736275,1782768644000,-500.16695822,0.00025673,2]
[426736273,1782768644000,-533.74288869,0.00025673,2]
[426736260,1782768644000,-350.0,0.00025462,2]
[426736259,1782768644000,-350.0,0.00025427,2]
[426736267,1782768644000,-269.63362701,0.00025673,2]
[426736264,1782768644000,-247.820006,0.0002567,2]
[426736263,1782768644000,-232.17650111,0.0002567,2]
[426736261,1782768644000,-482.92869828,0.00025667,2]
[426736256,1782768644000,-501.0,0.00025349,9]
[426736257,1782768644000,-350.0,0.00025362,2]
[426736258,1782768644000,-150.0,0.00025373,2]
[426736350,1782768645000,-502.64015027,0.00026231,2]
[426736345,1782768645000,-711.65718492,0.00026231,2]
[426736352,1782768645000,-630.49424886,0.00026231,2]
[426736342,1782768645000,-727.93742845,0.00026231,2]
[426736335,1782768645000,-464.35300223,0.00026228,2]
[426736333,1782768645000,-643.90493103,0.00026225,2]
[426736334,1782768645000,-601.49459654,0.00026225,2]
[426736331,1782768645000,-599.17,0.000261,2]
[426736337,1782768645000,-450.14327238,0.0002623,2]
[426736330,1782768645000,-350.0,0.00026035,2]
[426736336,1782768645000,-406.94233281,0.00026228,2]
[426736348,1782768645000,-745.97347864,0.00026231,2]
[426736343,1782768645000,-504.54372137,0.00026231,2]
[426736349,1782768645000,-601.79841157,0.00026231,2]
[426736351,1782768645000,-560.05008642,0.00026231,2]
[426736347,1782768645000,-666.88927763,0.00026231,2]
[426736341,1782768645000,-686.04655822,0.00026231,2]
[426736344,1782768645000,-738.74493046,0.00026231,2]
[426736346,1782768645000,-718.76270261,0.00026231,2]
[426736354,1782768645000,-609.86240649,0.00026231,2]
[426736360,1782768645000,-645.31915231,0.00026231,2]
[426736365,1782768645000,-763.34157018,0.00026231,2]
[426736361,1782768645000,-637.30336827,0.00026231,2]
[426736357,1782768645000,-601.7360618,0.00026231,2]
[426736338,1782768645000,-495.640012,0.0002623,2]
[426736356,1782768645000,-857.91143572,0.00026231,2]
[426736353,1782768645000,-641.25760823,0.00026231,2]
[426736332,1782768645000,-501.0,0.00026108,10]
[426736318,1782768645000,-4723.8309444,0.000258,2]
[426736339,1782768645000,-539.26725402,0.00026231,2]
[426736364,1782768645000,-501.74988477,0.00026231,2]
[426736304,1782768645000,-471.40552977,0.000257,2]
[426736303,1782768645000,-475.04807767,0.00025673,2]
[426736306,1782768645000,-206.22100212,0.00025747,2]
[426736305,1782768645000,-166.73050104,0.00025741,2]
[426736309,1782768645000,-201.74868217,0.00025747,2]
[426736307,1782768645000,-160.10619299,0.00025747,2]
[426736308,1782768645000,-219.76318742,0.00025747,2]
[426736311,1782768645000,-222.64013693,0.0002575,2]
[426736315,1782768645000,-350.0,0.0002576,2]
[426736310,1782768645000,-287.66435761,0.00025747,2]
[426736312,1782768645000,-179.67430602,0.0002575,2]
[426736328,1782768645000,-220.9790999,0.00026,2]
[426736313,1782768645000,-196.63089816,0.0002575,2]
[426736316,1782768645000,-331.37629794,0.00025799,10]
[426736317,1782768645000,-1725317.93031583,0.000258,2]
[426736319,1782768645000,-659.4118408,0.000258,2]
[426736320,1782768645000,-59223.16937864,0.000258,2]
[426736327,1782768645000,-1136.71647631,0.00026,2]
[426736321,1782768645000,-152.0,0.00025803,3]
[426736323,1782768645000,-154.46935744,0.00025927,2]
[426736322,1782768645000,-1200.0,0.000259,9]
[426736325,1782768645000,-4617.9892356,0.00026,2]
[426736326,1782768645000,-9533.36905003,0.00026,5]
[426736329,1782768645000,-150.0,0.0002602,5]
[426736340,1782768645000,-455.53346359,0.00026231,2]
[426736314,1782768645000,-234.1054066,0.0002575,2]
[426736359,1782768645000,-664.38079827,0.00026231,2]
[426736324,1782768645000,-613.53449459,0.0002599,2]
[426736366,1782768645000,-704.51441999,0.00026231,2]
[426736395,1782768645000,-167.98798287,0.00026306,2]
[426736401,1782768645000,-319.96830724,0.00026309,2]
[426736399,1782768645000,-185.53824093,0.00026309,2]
[426736402,1782768645000,-359.34861204,0.00026309,2]
[426736396,1782768645000,-575.32871522,0.00026306,2]
[426736421,1782768645000,-508802.07725509,0.000268,2]
[426736397,1782768645000,-320.21238598,0.00026309,2]
[426736398,1782768645000,-445.28027385,0.00026309,2]
[426736404,1782768645000,-468.2108132,0.00026309,2]
[426736405,1782768645000,-188.98369876,0.00026364,2]
[426736406,1782768645000,-350.0,0.00026399,2]
[426736403,1782768645000,-393.26179633,0.00026309,2]
[426736394,1782768645000,-214.24320267,0.00026306,2]
[426736411,1782768645000,-804.88116379,0.00026782,2]
[426736410,1782768645000,-480.72873426,0.000267,2]
[426736409,1782768645000,-2000.0,0.00026667,7]
[426736412,1782768645000,-932.4668483,0.00026789,2]
[426736358,1782768645000,-479.16056052,0.00026231,2]
[426736408,1782768645000,-150.0,0.00026641,2]
[426736414,1782768645000,-762.32800811,0.00026789,2]
[426736416,1782768645000,-869.59546749,0.00026789,2]
[426736417,1782768645000,-928.42967758,0.00026789,2]
[426736415,1782768645000,-796.62921034,0.00026789,2]
[426736418,1782768645000,-880.64472082,0.00026789,2]
[426736419,1782768645000,-791.74679611,0.00026789,2]
[426736420,1782768645000,-3610660.86621538,0.000268,2]
[426736407,1782768645000,-28075.92807695,0.000264,2]
[426736393,1782768645000,-174.19192964,0.00026306,2]
[426736413,1782768645000,-752.24801446,0.00026789,2]
[426736391,1782768645000,-158.27169699,0.00026306,2]
[426736392,1782768645000,-403.49736433,0.00026306,2]
[426736363,1782768645000,-647.1903679,0.00026231,2]
[426736355,1782768645000,-777.77759179,0.00026231,2]
[426736362,1782768645000,-695.67637399,0.00026231,2]
[426736367,1782768645000,-645.13568367,0.00026231,2]
[426736368,1782768645000,-719.42623569,0.00026231,2]
[426736371,1782768645000,-742.74374206,0.00026231,2]
[426736376,1782768645000,-208.93299555,0.00026299,2]
[426736370,1782768645000,-618.72062156,0.00026231,2]
[426736372,1782768645000,-766.91521448,0.00026231,2]
[426736373,1782768645000,-607.82667323,0.00026231,2]
[426736374,1782768645000,-704.51577665,0.00026231,2]
[426736375,1782768645000,-633.39743689,0.00026231,2]
[426736369,1782768645000,-708.639003,0.00026231,2]
[426736379,1782768645000,-164.36863685,0.00026306,2]
[426736386,1782768645000,-190.6418898,0.00026306,2]
[426736377,1782768645000,-333.46100209,0.00026299,2]
[426736388,1782768645000,-314.63799586,0.00026306,2]
[426736384,1782768645000,-356.06240683,0.00026306,2]
[426736381,1782768645000,-342.91394514,0.00026306,2]
[426736382,1782768645000,-412.44200424,0.00026306,2]
[426736387,1782768645000,-167.70438469,0.00026306,2]
[426736380,1782768645000,-426.00662091,0.00026306,2]
[426736383,1782768645000,-265.46981633,0.00026306,2]
[426736385,1782768645000,-170.80956639,0.00026306,2]
[426736389,1782768645000,-172.23978973,0.00026306,2]
[426736390,1782768645000,-439.52637484,0.00026306,2]
[426736378,1782768645000,-166.72601345,0.00026306,2]
[426736448,1782768646000,-500.0,0.00026849,2]
[426736453,1782768646000,-150.0,0.00026849,2]
[426736450,1782768646000,-500.0,0.00026849,2]
[426736451,1782768646000,-343.1176374,0.00026849,2]
[426736457,1782768646000,-500.0,0.00026849,2]
[426736455,1782768646000,-500.0,0.00026849,2]
[426736454,1782768646000,-154.92925631,0.00026849,2]
[426736458,1782768646000,-500.0,0.00026849,2]
[426736461,1782768646000,-500.0,0.00026849,2]
[426736452,1782768646000,-621.15565481,0.00026849,2]
[426736459,1782768646000,-500.0,0.00026849,2]
[426736466,1782768646000,-500.0,0.00026849,2]
[426736467,1782768646000,-500.0,0.00026849,2]
[426736460,1782768646000,-500.0,0.00026849,2]
[426736462,1782768646000,-500.0,0.00026849,2]
[426736464,1782768646000,-500.0,0.00026849,2]
[426736449,1782768646000,-500.0,0.00026849,2]
[426736456,1782768646000,-154.42815987,0.00026849,2]
[426736444,1782768646000,-616.0,0.00026849,2]
[426736428,1782768646000,-500.0,0.00026849,2]
[426736445,1782768646000,-500.0,0.00026849,2]
[426736422,1782768646000,-162.53,0.000268,7]
[426736425,1782768646000,-150.0,0.00026849,2]
[426736434,1782768646000,-500.0,0.00026849,2]
[426736426,1782768646000,-238.08670734,0.00026849,2]
[426736427,1782768646000,-500.0,0.00026849,2]
[426736430,1782768646000,-509.56126523,0.00026849,2]
[426736432,1782768646000,-500.0,0.00026849,2]
[426736429,1782768646000,-500.0,0.00026849,2]
[426736431,1782768646000,-500.0,0.00026849,2]
[426736424,1782768646000,-150.0,0.00026849,2]
[426736441,1782768646000,-500.0,0.00026849,2]
[426736440,1782768646000,-500.0,0.00026849,2]
[426736438,1782768646000,-500.0,0.00026849,2]
[426736436,1782768646000,-500.0,0.00026849,2]
[426736442,1782768646000,-500.0,0.00026849,2]
[426736446,1782768646000,-500.0,0.00026849,2]
[426736443,1782768646000,-251.43799297,0.00026849,2]
[426736447,1782768646000,-500.0,0.00026849,2]
[426736463,1782768646000,-333.58952447,0.00026849,2]
[426736472,1782768646000,-173.81676022,0.00026849,2]
[426736465,1782768646000,-265.60185884,0.00026849,2]
[426736500,1782768646000,-152.0,0.00027011,3]
[426736496,1782768646000,-250.0,0.00026849,2]
[426736498,1782768646000,-154.46935744,0.00026887,2]
[426736491,1782768646000,-150.0,0.00026849,2]
[426736501,1782768646000,-521.16,0.00027058,7]
[426736497,1782768646000,-501.0,0.00026867,11]
[426736492,1782768646000,-150.0,0.00026849,2]
[426736494,1782768646000,-150.0,0.00026849,2]
[426736499,1782768646000,-10647.08748402,0.00027,5]
[426736514,1782768646000,-1500.0,0.00027397,2]
[426736516,1782768646000,-883.146791,0.00027397,2]
[426736506,1782768646000,-350.0,0.00027244,2]
[426736510,1782768646000,-373.03697452,0.00027397,2]
[426736508,1782768646000,-350.0,0.00027392,2]
[426736504,1782768646000,-2000.0,0.000272,2]
[426736512,1782768646000,-150.0,0.00027397,2]
[426736468,1782768646000,-500.0,0.00026849,2]
[426736493,1782768646000,-150.0,0.00026849,2]
[426736490,1782768646000,-218.20374736,0.00026849,2]
[426736502,1782768646000,-150.0,0.0002706,5]
[426736485,1782768646000,-500.0,0.00026849,2]
[426736469,1782768646000,-301.62041916,0.00026849,2]
[426736489,1782768646000,-150.0,0.00026849,2]
[426736471,1782768646000,-500.0,0.00026849,2]
[426736475,1782768646000,-500.0,0.00026849,2]
[426736476,1782768646000,-500.0,0.00026849,2]
[426736470,1782768646000,-500.0,0.00026849,2]
[426736474,1782768646000,-500.0,0.00026849,2]
[426736479,1782768646000,-500.0,0.00026849,2]
[426736478,1782768646000,-500.0,0.00026849,2]
[426736473,1782768646000,-500.0,0.00026849,2]
[426736480,1782768646000,-555.05533822,0.00026849,2]
[426736481,1782768646000,-500.0,0.00026849,2]
[426736483,1782768646000,-500.0,0.00026849,2]
[426736482,1782768646000,-500.0,0.00026849,2]
[426736488,1782768646000,-200.0,0.00026849,2]
[426736486,1782768646000,-150.0,0.00026849,2]
[426736487,1782768646000,-500.0,0.00026849,2]
[426736477,1782768646000,-500.0,0.00026849,2]
[426736484,1782768646000,-150.0,0.00026849,2]
[426736555,1782768647000,-1027.870906,0.00027397,2]
[426736554,1782768647000,-1027.870906,0.00027397,2]
[426736577,1782768647000,-4252.868314,0.00027397,2]
[426736546,1782768647000,-1027.870906,0.00027397,2]
[426736549,1782768647000,-1027.870906,0.00027397,2]
[426736551,1782768647000,-1027.870906,0.00027397,2]
[426736547,1782768647000,-1027.870906,0.00027397,2]
[426736548,1782768647000,-1027.870906,0.00027397,2]
[426736556,1782768647000,-1027.870909,0.00027397,2]
[426736545,1782768647000,-1027.870906,0.00027397,2]
[426736552,1782768647000,-1027.870906,0.00027397,2]
[426736559,1782768647000,-4252.868314,0.00027397,2]
[426736566,1782768647000,-4252.868314,0.00027397,2]
[426736563,1782768647000,-4252.868314,0.00027397,2]
[426736565,1782768647000,-4252.868314,0.00027397,2]
[426736560,1782768647000,-4252.868314,0.00027397,2]
[426736562,1782768647000,-4252.868314,0.00027397,2]
[426736564,1782768647000,-4252.868314,0.00027397,2]
[426736567,1782768647000,-4252.868314,0.00027397,2]
[426736569,1782768647000,-4252.868314,0.00027397,2]
[426736561,1782768647000,-4252.868314,0.00027397,2]
[426736568,1782768647000,-4252.868314,0.00027397,2]
[426736571,1782768647000,-4252.868314,0.00027397,2]
[426736550,1782768647000,-1027.870906,0.00027397,2]
[426736558,1782768647000,-1026.86,0.00027397,2]
[426736539,1782768647000,-1027.870906,0.00027397,2]
[426736526,1782768647000,-883.146791,0.00027397,2]
[426736540,1782768647000,-1027.870906,0.00027397,2]
[426736517,1782768647000,-883.146791,0.00027397,2]
[426736518,1782768647000,-883.146791,0.00027397,2]
[426736519,1782768647000,-883.146791,0.00027397,2]
[426736520,1782768647000,-883.146791,0.00027397,2]
[426736524,1782768647000,-883.146791,0.00027397,2]
[426736521,1782768647000,-883.146791,0.00027397,2]
[426736522,1782768647000,-883.146791,0.00027397,2]
[426736531,1782768647000,-883.146791,0.00027397,2]
[426736529,1782768647000,-883.146791,0.00027397,2]
[426736532,1782768647000,-883.146791,0.00027397,2]
[426736523,1782768647000,-883.146791,0.00027397,2]
[426736542,1782768647000,-1027.870906,0.00027397,2]
[426736525,1782768647000,-883.146791,0.00027397,2]
[426736527,1782768647000,-883.146791,0.00027397,2]
[426736530,1782768647000,-883.146791,0.00027397,2]
[426736534,1782768647000,-883.146791,0.00027397,2]
[426736533,1782768647000,-883.146791,0.00027397,2]
[426736544,1782768647000,-1027.870906,0.00027397,2]
[426736538,1782768647000,-1027.870906,0.00027397,2]
[426736537,1782768647000,-1027.870906,0.00027397,2]
[426736535,1782768647000,-883.1468,0.00027397,2]
[426736536,1782768647000,-300.0,0.00027397,2]
[426736541,1782768647000,-1027.870906,0.00027397,2]
[426736543,1782768647000,-1027.870906,0.00027397,2]
[426736528,1782768647000,-883.146791,0.00027397,2]
[426736572,1782768647000,-4252.868314,0.00027397,2]
[426736553,1782768647000,-1027.870906,0.00027397,2]
[426736578,1782768647000,-4252.868308,0.00027397,2]
[426736605,1782768647000,-295.0,0.00027637,2]
[426736604,1782768647000,-501.0,0.00027627,11]
[426736606,1782768647000,-1278.0,0.00027637,2]
[426736609,1782768647000,-392.94,0.00027645,30]
[426736610,1782768647000,-392.96,0.00027654,30]
[426736607,1782768647000,-1230.0,0.00027637,2]
[426736608,1782768647000,-3651.0,0.00027637,2]
[426736611,1782768647000,-516.58,0.00027683,30]
[426736612,1782768647000,-516.9,0.00027696,30]
[426736613,1782768647000,-562.73,0.00027722,30]
[426736617,1782768647000,-161.62,0.00027743,7]
[426736618,1782768647000,-161.6,0.00027758,7]
[426736621,1782768647000,-161.62,0.00027786,2]
[426736615,1782768647000,-563.95,0.00027737,30]
[426736614,1782768647000,-161.62,0.00027722,2]
[426736620,1782768647000,-161.6,0.00027779,30]
[426736622,1782768647000,-392.94,0.00027795,7]
[426736616,1782768647000,-161.6,0.00027738,2]
[426736623,1782768647000,-161.6,0.00027799,2]
[426736625,1782768647000,-161.62,0.00027807,7]
[426736627,1782768647000,-161.62,0.00027829,30]
[426736626,1782768647000,-161.6,0.0002782,7]
[426736628,1782768647000,-516.58,0.00027829,7]
[426736624,1782768647000,-392.96,0.00027803,7]
[426736570,1782768647000,-4252.868314,0.00027397,2]
[426736602,1782768647000,-1114.11561309,0.00027626,2]
[426736603,1782768647000,-1056.77366498,0.00027626,2]
[426736619,1782768647000,-161.62,0.00027764,30]
[426736591,1782768647000,-257.29701076,0.00027397,2]
[426736599,1782768647000,-1064.0,0.000275,5]
[426736573,1782768647000,-4252.868314,0.00027397,2]
[426736575,1782768647000,-4252.868314,0.00027397,2]
[426736574,1782768647000,-4252.868314,0.00027397,2]
[426736576,1782768647000,-4252.868314,0.00027397,2]
[426736580,1782768647000,-151.0,0.00027397,2]
[426736588,1782768647000,-12846.8,0.00027397,10]
[426736589,1782768647000,-174.2913077,0.00027397,2]
[426736579,1782768647000,-3098.76,0.00027397,2]
[426736584,1782768647000,-151.0,0.00027397,2]
[426736583,1782768647000,-151.0,0.00027397,2]
[426736587,1782768647000,-6736.89,0.00027397,10]
[426736586,1782768647000,-1476.29,0.00027397,2]
[426736581,1782768647000,-151.0,0.00027397,2]
[426736598,1782768647000,-500.0,0.000275,7]
[426736582,1782768647000,-151.0,0.00027397,2]
[426736600,1782768647000,-914.79360973,0.00027626,2]
[426736595,1782768647000,-225.16,0.000274,7]
[426736601,1782768647000,-955.9550524,0.00027626,2]
[426736596,1782768647000,-257.01,0.000274,7]
[426736597,1782768647000,-326.59,0.000274,7]
[426736594,1782768647000,-1208.60850225,0.00027397,2]
[426736593,1782768647000,-697.16523081,0.00027397,2]
[426736590,1782768647000,-348.58261541,0.00027397,2]
[426736585,1782768647000,-156.520971,0.00027397,2]
[426736592,1782768647000,-522.87392311,0.00027397,2]
[426736665,1782768648000,-161.6,0.00028088,30]
[426736670,1782768648000,-516.58,0.00028122,30]
[426736668,1782768648000,-161.62,0.00028108,2]
[426736661,1782768648000,-161.6,0.00028047,2]
[426736667,1782768648000,-392.96,0.00028102,30]
[426736662,1782768648000,-161.62,0.00028065,7]
[426736666,1782768648000,-392.94,0.00028096,30]
[426736660,1782768648000,-161.62,0.00028044,2]
[426736663,1782768648000,-161.6,0.00028068,7]
[426736659,1782768648000,-161.6,0.00028026,30]
[426736677,1782768648000,-392.96,0.00028252,7]
[426736664,1782768648000,-161.62,0.00028087,30]
[426736678,1782768648000,-516.58,0.00028268,7]
[426736683,1782768648000,-501.0,0.00028386,12]
[426736680,1782768648000,-562.73,0.0002829,7]
[426736674,1782768648000,-562.73,0.00028148,30]
[426736671,1782768648000,-516.9,0.0002813,30]
[426736673,1782768648000,-161.72,0.0002813,7]
[426736675,1782768648000,-563.95,0.00028158,30]
[426736676,1782768648000,-392.94,0.00028247,7]
[426736679,1782768648000,-516.9,0.00028275,7]
[426736669,1782768648000,-161.6,0.00028109,2]
[426736682,1782768648000,-28860.28,0.00028364,7]
[426736692,1782768648000,-154.0,0.00028585,30]
[426736685,1782768648000,-500.0,0.00028558,16]
[426736657,1782768648000,-563.95,0.00028017,2]
[426736672,1782768648000,-161.7,0.0002813,7]
[426736658,1782768648000,-161.62,0.00028022,30]
[426736629,1782768648000,-516.9,0.0002784,7]
[426736653,1782768648000,-161.6,0.00027985,2]
[426736681,1782768648000,-563.95,0.00028298,7]
[426736631,1782768648000,-154.46935744,0.00027847,2]
[426736633,1782768648000,-161.6,0.00027861,2]
[426736632,1782768648000,-161.62,0.0002785,2]
[426736630,1782768648000,-161.6,0.00027841,30]